Workbook

Sheet Sheet3
A1: 序号 | B1: 学号 | C1: 姓名 | D1: 德育 | J1: 智育 | P1: 文体 | V1: 综合测评总分 | W1: 排名
D2: 基本分 | E2: 奖励分 | F2: 惩罚分 | G2: 个人德育分 | H2: 个人德育总分/基准 | I2: 德育总成绩 | J2: 基本成绩 | K2: 奖励分 | L2: 惩罚分 | M2: 个人智育分 | N2: 个人智育总分/基准 | O2: 智育总成绩 | P2: 基本分 | Q2: 奖励分 | R2: 惩罚分 | S2: 个人体育分 | T2: 个人体育总分/基准 | U2: 文体总成绩
A3: 1 | B3: 2021310205 | C3: 曹轶华 | D3: 96.89 | E3: 28.000 | F3: 0.000 | G3: =D3+E3 -> 124.89 | H3: =G3/MAX($G$3:$G$58) -> 0.6925 | I3: =100*H3 -> 69.25 | J3: 89.90 | K3: 114.03 | L3: 0.000 | M3: =L3+K3+J3 -> 203.93 | N3: =M3/MAX($M$3:$M$58) -> 0.9741 | O3: =100*N3 -> 97.41 | P3: 100.00 | Q3: 0.00 | R3: 0.00 | S3: =P3+Q3 -> 100.00 | T3: =S3/MAX($S$3:$S$58) -> 0.8017 | U3: =100*T3 -> 80.17 | V3: =0.2*I3+0.7*O3+0.1*U3 -> 90.05 | W3: 1
A4: 2 | B4: 2021310251 | C4: 姜刘杉 | D4: 96.86 | E4: 8.000 | F4: 0.000 | G4: =D4+E4 -> 104.86 | H4: 0.5814 | I4: 58.14 | J4: 86.90 | K4: 122.45 | L4: 0.000 | M4: =L4+K4+J4 -> 209.35 | N4: 1.0000 | O4: 100.00 | P4: 100.00 | Q4: 0.00 | R4: 0.00 | S4: =P4+Q4 -> 100.00 | T4: 0.8017 | U4: 80.17 | V4: 89.65 | W4: 2
A5: 3 | B5: 2021310227 | C5: 李博凤 | D5: 97.08 | E5: 0.000 | F5: 0.000 | G5: 97.08 | H5: 0.5383 | I5: =100*H5 -> 53.83 | J5: 87.70 | K5: 119.65 | L5: 0.000 | M5: 207.35 | N5: 0.9904 | O5: 99.04 | P5: 100.00 | Q5: 0.00 | R5: 0.00 | S5: 100.00 | T5: 0.8017 | U5: 80.17 | V5: 88.11 | W5: 3
A6: 4 | B6: 2021310233 | C6: 朱玉洁 | D6: 96.86 | E6: 9.500 | F6: 0.000 | G6: 106.36 | H6: 0.5897 | I6: 58.97 | J6: 89.90 | K6: 109.42 | L6: 0.000 | M6: 199.32 | N6: 0.9521 | O6: 95.21 | P6: 100.00 | Q6: 0.00 | R6: 0.00 | S6: 100.00 | T6: 0.8017 | U6: 80.17 | V6: 86.46 | W6: 4
A7: 5 | B7: 2021310232 | C7: 王源丰 | D7: 97.02 | E7: 50.000 | F7: 0.000 | G7: 147.02 | H7: 0.8152 | I7: 81.52 | J7: 84.77 | K7: 92.34 | L7: 0.000 | M7: 177.11 | N7: 0.8460 | O7: 84.60 | P7: 100.00 | Q7: 0.00 | R7: 0.00 | S7: 100.00 | T7: 0.8017 | U7: 80.17 | V7: 83.54 | W7: 5
A8: 6 | B8: 2021310243 | C8: 孙衍鹍 | D8: 96.68 | E8: 83.667 | F8: 0.000 | G8: 180.35 | H8: 1.0000 | I8: 100.00 | J8: 88.70 | K8: 66.41 | L8: 0.000 | M8: 155.11 | N8: 0.7409 | O8: 74.09 | P8: 100.00 | Q8: 10.00 | R8: 0.00 | S8: 110.00 | T8: 0.8818 | U8: 88.18 | V8: 80.68 | W8: 6
A9: 7 | B9: 2021310234 | C9: 高靖博 | D9: 96.84 | E9: 3.000 | F9: 0.000 | G9: 99.84 | H9: 0.5536 | I9: 55.36 | J9: 90.40 | K9: 76.73 | L9: 0.000 | M9: 167.13 | N9: 0.7983 | O9: 79.83 | P9: 100.00 | Q9: 0.00 | R9: 0.00 | S9: 100.00 | T9: 0.8017 | U9: 80.17 | V9: 74.97 | W9: 7
A10: 8 | B10: 2021310250 | C10: 万荫基 | D10: 97.85 | E10: 0.500 | F10: 0.000 | G10: 98.35 | H10: 0.5454 | I10: 54.54 | J10: 86.20 | K10: 79.78 | L10: 0.000 | M10: 165.98 | N10: 0.7928 | O10: 79.28 | P10: 100.00 | Q10: 0.00 | R10: 0.00 | S10: 100.00 | T10: 0.8017 | U10: 80.17 | V10: 74.42 | W10: 8
A11: 9 | B11: 2021310216 | C11: 蔡敏 | D11: 97.09 | E11: 4.000 | F11: 0.000 | G11: 101.09 | H11: 0.5605 | I11: 56.05 | J11: 86.64 | K11: 76.15 | L11: 0.000 | M11: 162.79 | N11: 0.7776 | O11: 77.76 | P11: 100.00 | Q11: 0.00 | R11: 0.00 | S11: 100.00 | T11: 0.8017 | U11: 80.17 | V11: 73.66 | W11: 9
A12: 10 | B12: 2021310245 | C12: 孙思远 | D12: 96.85 | E12: 31.787 | F12: 0.000 | G12: 128.64 | H12: 0.7133 | I12: 71.33 | J12: 88.00 | K12: 61.53 | L12: 0.000 | M12: 149.53 | N12: 0.7143 | O12: 71.43 | P12: 100.00 | Q12: 0.00 | R12: 0.00 | S12: 100.00 | T12: 0.8017 | U12: 80.17 | V12: 72.28 | W12: 10
A13: 11 | B13: 2021315207 | C13: 肖鹏 | D13: 96.69 | E13: 6.000 | F13: 0.000 | G13: 102.69 | H13: 0.5694 | I13: 56.94 | J13: 87.15 | K13: 68.63 | L13: 0.000 | M13: 155.78 | N13: 0.7441 | O13: 74.41 | P13: 100.00 | Q13: 0.00 | R13: 0.00 | S13: 100.00 | T13: 0.8017 | U13: 80.17 | V13: 71.49 | W13: 11
A14: 12 | B14: 2021310215 | C14: 王存宁 | D14: 96.85 | E14: 8.000 | F14: 0.000 | G14: 104.85 | H14: 0.5814 | I14: 58.14 | J14: 91.88 | K14: 61.57 | L14: 0.000 | M14: 153.45 | N14: 0.7330 | O14: 73.30 | P14: 100.00 | Q14: 0.00 | R14: 0.00 | S14: 100.00 | T14: 0.8017 | U14: 80.17 | V14: 70.95 | W14: 12
A15: 13 | B15: 2021310214 | C15: 岳黎平 | D15: 96.79 | E15: 14.000 | F15: 0.000 | G15: 110.79 | H15: 0.6143 | I15: 61.43 | J15: 85.90 | K15: 61.50 | L15: 0.000 | M15: 147.40 | N15: 0.7041 | O15: 70.41 | P15: 100.00 | Q15: 0.00 | R15: 0.00 | S15: 100.00 | T15: 0.8017 | U15: 80.17 | V15: 69.59 | W15: 13
A16: 14 | B16: 2021315213 | C16: 胡文娅 | D16: 97.07 | E16: 14.200 | F16: 0.000 | G16: 111.27 | H16: 0.6170 | I16: 61.70 | J16: 87.73 | K16: 56.35 | L16: 0.000 | M16: 144.08 | N16: 0.6882 | O16: 68.82 | P16: 100.00 | Q16: 0.00 | R16: 0.00 | S16: 100.00 | T16: 0.8017 | U16: 80.17 | V16: 68.53 | W16: 14
A17: 15 | B17: 2021310242 | C17: 李奕菲 | D17: 96.83 | E17: 15.000 | F17: 0.000 | G17: 111.83 | H17: 0.6201 | I17: 62.01 | J17: 84.40 | K17: 56.75 | L17: 0.000 | M17: 141.15 | N17: 0.6742 | O17: 67.42 | P17: 100.00 | Q17: 6.70 | R17: 0.00 | S17: 106.70 | T17: 0.8554 | U17: 85.54 | V17: 68.15 | W17: 15
A18: 16 | B18: 2021310202 | C18: 陈弘男 | D18: 96.77 | E18: 6.000 | F18: 0.000 | G18: 102.77 | H18: 0.5699 | I18: 56.99 | J18: 91.40 | K18: 53.97 | L18: 0.000 | M18: 145.37 | N18: 0.6944 | O18: 69.44 | P18: 100.00 | Q18: 0.00 | R18: 0.00 | S18: 100.00 | T18: 0.8017 | U18: 80.17 | V18: 68.02 | W18: 16
A19: 17 | B19: 2021310221 | C19: 王丽敏 | D19: 97.05 | E19: 0.000 | F19: 0.000 | G19: 97.05 | H19: 0.5381 | I19: 53.81 | J19: 93.10 | K19: 47.67 | L19: 0.000 | M19: 140.77 | N19: 0.6724 | O19: 67.24 | P19: 100.00 | Q19: 0.00 | R19: 0.00 | S19: 100.00 | T19: 0.8017 | U19: 80.17 | V19: 65.85 | W19: 17
A20: 18 | B20: 2021310224 | C20: 关俊杰 | D20: 96.74 | E20: 0.000 | F20: 0.000 | G20: 96.74 | H20: 0.5364 | I20: 53.64 | J20: 88.40 | K20: 51.50 | L20: 0.000 | M20: 139.90 | N20: 0.6682 | O20: 66.82 | P20: 100.00 | Q20: 0.00 | R20: 0.00 | S20: 100.00 | T20: 0.8017 | U20: 80.17 | V20: 65.52 | W20: 18
A21: 19 | B21: 2021310211 | C21: 刘琦 | D21: 96.91 | E21: 6.000 | F21: 0.000 | G21: 102.91 | H21: 0.5706 | I21: 57.06 | J21: 91.60 | K21: 39.81 | L21: 0.000 | M21: 131.41 | N21: 0.6277 | O21: 62.77 | P21: 100.00 | Q21: 0.00 | R21: 0.00 | S21: 100.00 | T21: 0.8017 | U21: 80.17 | V21: 63.37 | W21: 19
A22: 20 | B22: 2021310240 | C22: 冯博汉 | D22: 96.84 | E22: 3.000 | F22: 0.000 | G22: 99.84 | H22: 0.5536 | I22: 55.36 | J22: 76.00 | K22: 56.33 | L22: 0.000 | M22: 132.33 | N22: 0.6321 | O22: 63.21 | P22: 100.00 | Q22: 0.00 | R22: 0.00 | S22: 100.00 | T22: 0.8017 | U22: 80.17 | V22: 63.34 | W22: 20
A23: 21 | B23: 2021310219 | C23: 王陇豫 | D23: 96.74 | E23: 3.000 | F23: 0.000 | G23: 99.74 | H23: 0.5530 | I23: 55.30 | J23: 87.70 | K23: 40.00 | L23: 0.000 | M23: 127.70 | N23: 0.6100 | O23: 61.00 | P23: 100.00 | Q23: 0.00 | R23: 0.00 | S23: 100.00 | T23: 0.8017 | U23: 80.17 | V23: 61.78 | W23: 21
A24: 22 | B24: 2021310226 | C24: 张奇 | D24: 96.82 | E24: 0.000 | F24: 0.000 | G24: 96.82 | H24: 0.5369 | I24: 53.69 | J24: 84.20 | K24: 43.00 | L24: 0.000 | M24: 127.20 | N24: 0.6076 | O24: 60.76 | P24: 100.00 | Q24: 0.00 | R24: 0.00 | S24: 100.00 | T24: 0.8017 | U24: 80.17 | V24: 61.28 | W24: 22
A25: 23 | B25: 2021310212 | C25: 刘继坤 | D25: 96.90 | E25: 0.000 | F25: 0.000 | G25: 96.90 | H25: 0.5373 | I25: 53.73 | J25: 83.20 | K25: 35.52 | L25: 0.000 | M25: 118.72 | N25: 0.5671 | O25: 56.71 | P25: 100.00 | Q25: 24.74 | R25: 0.00 | S25: 124.74 | T25: 1.0000 | U25: 100.00 | V25: 60.44 | W25: 23
A26: 24 | B26: 2021310230 | C26: 解凌远 | D26: 96.90 | E26: 27.800 | F26: 0.000 | G26: 124.70 | H26: 0.6915 | I26: 69.15 | J26: 87.73 | K26: 24.57 | L26: 0.000 | M26: 112.31 | N26: 0.5364 | O26: 53.64 | P26: 100.00 | Q26: 0.00 | R26: 0.00 | S26: 100.00 | T26: 0.8017 | U26: 80.17 | V26: 59.40 | W26: 24
A27: 25 | B27: 2021310239 | C27: 刘萌 | D27: 96.90 | E27: 3.000 | F27: 0.000 | G27: 99.90 | H27: 0.5540 | I27: 55.40 | J27: 90.80 | K27: 27.09 | L27: 0.000 | M27: 117.89 | N27: 0.5631 | O27: 56.31 | P27: 100.00 | Q27: 0.00 | R27: 0.00 | S27: 100.00 | T27: 0.8017 | U27: 80.17 | V27: 58.51 | W27: 25
A28: 26 | B28: 2021310238 | C28: 孔涛 | D28: 96.99 | E28: 0.000 | F28: 0.000 | G28: 96.99 | H28: 0.5378 | I28: 53.78 | J28: 89.30 | K28: 26.46 | L28: 0.000 | M28: 115.76 | N28: 0.5530 | O28: 55.30 | P28: 100.00 | Q28: 0.00 | R28: 0.00 | S28: 100.00 | T28: 0.8017 | U28: 80.17 | V28: 57.48 | W28: 26
A29: 27 | B29: 2021310246 | C29: 丁中振 | D29: 96.81 | E29: 11.000 | F29: 0.000 | G29: 107.81 | H29: 0.5978 | I29: 59.78 | J29: 82.70 | K29: 28.60 | L29: 0.000 | M29: 111.30 | N29: 0.5316 | O29: 53.16 | P29: 100.00 | Q29: 0.00 | R29: 0.00 | S29: 100.00 | T29: 0.8017 | U29: 80.17 | V29: 57.19 | W29: 27
A30: 28 | B30: 2021310231 | C30: 李玉果 | D30: 96.84 | E30: 8.000 | F30: 0.000 | G30: 104.84 | H30: 0.5813 | I30: 58.13 | J30: 88.10 | K30: 19.22 | L30: 0.000 | M30: 107.32 | N30: 0.5126 | O30: 51.26 | P30: 100.00 | Q30: 0.00 | R30: 0.00 | S30: 100.00 | T30: 0.8017 | U30: 80.17 | V30: 55.53 | W30: 28
A31: 29 | B31: 2021310206 | C31: 曹潘 | D31: 97.65 | E31: 37.600 | F31: 0.000 | G31: 135.25 | H31: 0.7500 | I31: 75.00 | J31: 90.70 | K31: 5.60 | L31: 0.000 | M31: 96.30 | N31: 0.4600 | O31: 46.00 | P31: 100.00 | Q31: 0.00 | R31: 0.00 | S31: 100.00 | T31: 0.8017 | U31: 80.17 | V31: 55.22 | W31: 29
A32: 30 | B32: 2021310207 | C32: 王奥诚 | D32: 96.74 | E32: 8.600 | F32: 0.000 | G32: 105.34 | H32: 0.5841 | I32: 58.41 | J32: 91.70 | K32: 12.61 | L32: 0.000 | M32: 104.31 | N32: 0.4983 | O32: 49.83 | P32: 100.00 | Q32: 0.00 | R32: 0.00 | S32: 100.00 | T32: 0.8017 | U32: 80.17 | V32: 54.58 | W32: 30
A33: 31 | B33: 2021310235 | C33: 张凌玮 | D33: 96.92 | E33: 5.000 | F33: 0.000 | G33: 101.92 | H33: 0.5651 | I33: 56.51 | J33: 91.90 | K33: 10.50 | L33: 0.000 | M33: 102.40 | N33: 0.4891 | O33: 48.91 | P33: 100.00 | Q33: 3.00 | R33: 0.00 | S33: 103.00 | T33: 0.8257 | U33: 82.57 | V33: 53.80 | W33: 31
A34: 32 | B34: 2021310228 | C34: 孙建辰 | D34: 96.97 | E34: 3.000 | F34: 0.000 | G34: 99.97 | H34: 0.5543 | I34: =100*H34 -> 55.43 | J34: 85.67 | K34: 13.25 | L34: 0.000 | M34: 98.92 | N34: 0.4725 | O34: =100*N34 -> 47.25 | P34: 100.00 | Q34: 0.00 | R34: 0.00 | S34: =P34+Q34 -> 100.00 | T34: 0.8017 | U34: =100*T34 -> 80.17 | V34: =0.2*I34+0.7*O34+0.1*U34 -> 52.18 | W34: 32
A35: 33 | B35: 2021310237 | C35: 付信格 | D35: 96.97 | E35: 15.000 | F35: 0.000 | G35: 111.97 | H35: =G35/MAX($G$3:$G$58) -> 0.6209 | I35: 62.09 | J35: 88.80 | K35: 5.77 | L35: 0.000 | M35: 94.57 | N35: =M35/MAX($M$3:$M$58) -> 0.4517 | O35: 45.17 | P35: 100.00 | Q35: 0.00 | R35: 0.00 | S35: 100.00 | T35: =S35/MAX($S$3:$S$58) -> 0.8017 | U35: 80.17 | V35: 52.06 | W35: 33
A36: 34 | B36: 2021310213 | C36: 杨晔 | D36: 96.86 | E36: 12.200 | F36: 0.000 | G36: 109.06 | H36: 0.6047 | I36: 60.47 | J36: 80.64 | K36: 13.81 | L36: 0.000 | M36: 94.45 | N36: 0.4512 | O36: 45.12 | P36: 100.00 | Q36: 0.00 | R36: 0.00 | S36: 100.00 | T36: 0.8017 | U36: 80.17 | V36: 51.69 | W36: 34
A37: 35 | B37: 2021310241 | C37: 蒋涛 | D37: 96.81 | E37: 3.000 | F37: 0.000 | G37: 99.81 | H37: 0.5534 | I37: 55.34 | J37: 93.10 | K37: 0.00 | L37: 0.000 | M37: 93.10 | N37: 0.4447 | O37: 44.47 | P37: 100.00 | Q37: 0.00 | R37: 0.00 | S37: 100.00 | T37: 0.8017 | U37: 80.17 | V37: 50.21 | W37: 35
A38: 36 | B38: 2021315211 | C38: 陶金泉 | D38: 96.80 | E38: 8.000 | F38: 0.000 | G38: 104.80 | H38: 0.5811 | I38: 58.11 | J38: 87.65 | K38: 0.10 | L38: 0.000 | M38: 87.75 | N38: 0.4191 | O38: 41.91 | P38: 100.00 | Q38: 7.00 | R38: 0.00 | S38: 107.00 | T38: 0.8578 | U38: 85.78 | V38: 49.54 | W38: 36
A39: 37 | B39: 2021310204 | C39: 马秋伟 | D39: 96.78 | E39: 0.000 | F39: 0.000 | G39: 96.78 | H39: 0.5366 | I39: 53.66 | J39: 86.60 | K39: 4.63 | L39: 0.000 | M39: 91.23 | N39: 0.4357 | O39: 43.57 | P39: 100.00 | Q39: 0.00 | R39: 0.00 | S39: 100.00 | T39: 0.8017 | U39: 80.17 | V39: 49.25 | W39: 37
A40: 38 | B40: 2021310225 | C40: 邢梦可 | D40: 97.02 | E40: 3.400 | F40: 0.000 | G40: 100.42 | H40: 0.5568 | I40: 55.68 | J40: 89.50 | K40: 0.40 | L40: 0.000 | M40: 89.90 | N40: 0.4294 | O40: 42.94 | P40: 100.00 | Q40: 0.00 | R40: 0.00 | S40: 100.00 | T40: 0.8017 | U40: 80.17 | V40: 49.21 | W40: 38
A41: 39 | B41: 2021310223 | C41: 金伟星 | D41: 96.67 | E41: 0.000 | F41: 0.000 | G41: 96.67 | H41: 0.5360 | I41: 53.60 | J41: 91.00 | K41: 0.00 | L41: 0.000 | M41: 91.00 | N41: 0.4347 | O41: 43.47 | P41: 100.00 | Q41: 0.00 | R41: 0.00 | S41: 100.00 | T41: 0.8017 | U41: 80.17 | V41: 49.16 | W41: 39
A42: 40 | B42: 2021310203 | C42: 李傲 | D42: 96.78 | E42: 0.000 | F42: 0.000 | G42: 96.78 | H42: 0.5366 | I42: 53.66 | J42: 90.80 | K42: 0.00 | L42: 0.000 | M42: 90.80 | N42: 0.4337 | O42: 43.37 | P42: 100.00 | Q42: 0.00 | R42: 0.00 | S42: 100.00 | T42: 0.8017 | U42: 80.17 | V42: 49.11 | W42: 40
A43: 41 | B43: 2021310222 | C43: 高金明 | D43: 96.79 | E43: 0.000 | F43: 0.000 | G43: 96.79 | H43: 0.5367 | I43: 53.67 | J43: 90.70 | K43: 0.00 | L43: 0.000 | M43: 90.70 | N43: 0.4332 | O43: 43.32 | P43: 100.00 | Q43: 0.00 | R43: 0.00 | S43: 100.00 | T43: 0.8017 | U43: 80.17 | V43: 49.08 | W43: 41
A44: 42 | B44: 2021310253 | C44: 李蓉蓉 | D44: 96.83 | E44: 6.000 | F44: 0.000 | G44: 102.83 | H44: 0.5702 | I44: 57.02 | J44: 88.57 | K44: 0.00 | L44: 0.000 | M44: 88.57 | N44: 0.4230 | O44: 42.30 | P44: 100.00 | Q44: 0.00 | R44: 0.00 | S44: 100.00 | T44: 0.8017 | U44: 80.17 | V44: 49.03 | W44: 42
A45: 43 | B45: 2021310220 | C45: 马瑞洁 | D45: 97.01 | E45: 3.600 | F45: 0.000 | G45: 100.61 | H45: 0.5579 | I45: 55.79 | J45: 89.17 | K45: 0.00 | L45: 0.000 | M45: 89.17 | N45: 0.4259 | O45: 42.59 | P45: 100.00 | Q45: 0.00 | R45: 0.00 | S45: 100.00 | T45: 0.8017 | U45: 80.17 | V45: 48.99 | W45: 43
A46: 44 | B46: 2021310217 | C46: 王有佳 | D46: 96.83 | E46: 0.000 | F46: 0.000 | G46: 96.83 | H46: 0.5369 | I46: 53.69 | J46: 90.24 | K46: 0.00 | L46: 0.000 | M46: 90.24 | N46: 0.4310 | O46: 43.10 | P46: 100.00 | Q46: 0.00 | R46: 0.00 | S46: 100.00 | T46: 0.8017 | U46: 80.17 | V46: 48.93 | W46: 44
A47: 45 | B47: 2021310244 | C47: 杨扬 | D47: 97.22 | E47: 11.000 | F47: 0.000 | G47: 108.22 | H47: 0.6001 | I47: 60.01 | J47: 84.97 | K47: 1.48 | L47: 0.000 | M47: 86.44 | N47: 0.4129 | O47: 41.29 | P47: 100.00 | Q47: 0.00 | R47: 0.00 | S47: 100.00 | T47: 0.8017 | U47: 80.17 | V47: 48.92 | W47: 45
A48: 46 | B48: 2021310208 | C48: 栾孟坤 | D48: 93.88 | E48: 0.000 | F48: 0.000 | G48: 93.88 | H48: 0.5205 | I48: 52.05 | J48: 91.00 | K48: 0.00 | L48: 0.000 | M48: 91.00 | N48: 0.4347 | O48: 43.47 | P48: 100.00 | Q48: 0.00 | R48: 0.00 | S48: 100.00 | T48: 0.8017 | U48: 80.17 | V48: 48.85 | W48: 46
A49: 47 | B49: 2020310203 | C49: 李娟娟 | D49: 96.85 | E49: 0.000 | F49: 0.000 | G49: 96.85 | H49: 0.5370 | I49: 53.70 | J49: 90.00 | K49: 0.00 | L49: 0.000 | M49: 90.00 | N49: 0.4299 | O49: 42.99 | P49: 100.00 | Q49: 0.00 | R49: 0.00 | S49: 100.00 | T49: 0.8017 | U49: 80.17 | V49: 48.85 | W49: 47
A50: 48 | B50: 2021310252 | C50: 贾亦静 | D50: 96.73 | E50: 0.000 | F50: 0.000 | G50: 96.73 | H50: 0.5363 | I50: 53.63 | J50: 89.90 | K50: 0.00 | L50: 0.000 | M50: 89.90 | N50: 0.4294 | O50: 42.94 | P50: 100.00 | Q50: 0.00 | R50: 0.00 | S50: 100.00 | T50: 0.8017 | U50: 80.17 | V50: 48.80 | W50: 48
A51: 49 | B51: 2021310236 | C51: 许顺年 | D51: 96.84 | E51: 0.000 | F51: 0.000 | G51: 96.84 | H51: 0.5370 | I51: 53.70 | J51: 88.80 | K51: 0.00 | L51: 0.000 | M51: 88.80 | N51: 0.4242 | O51: 42.42 | P51: 100.00 | Q51: 0.00 | R51: 0.00 | S51: 100.00 | T51: 0.8017 | U51: 80.17 | V51: 48.45 | W51: 49
A52: 50 | B52: 2021310254 | C52: 郑逸 | D52: 96.88 | E52: 3.000 | F52: 0.000 | G52: 99.88 | H52: 0.5538 | I52: 55.38 | J52: 87.20 | K52: 0.10 | L52: 0.000 | M52: 87.30 | N52: 0.4170 | O52: 41.70 | P52: 100.00 | Q52: 0.00 | R52: 0.00 | S52: 100.00 | T52: 0.8017 | U52: 80.17 | V52: 48.28 | W52: 50
A53: 51 | B53: 2021310218 | C53: 回天力 | D53: 96.93 | E53: 0.000 | F53: 0.000 | G53: 96.93 | H53: 0.5375 | I53: 53.75 | J53: 87.70 | K53: 0.00 | L53: 0.000 | M53: 87.70 | N53: 0.4189 | O53: 41.89 | P53: 100.00 | Q53: 0.00 | R53: 0.00 | S53: 100.00 | T53: 0.8017 | U53: 80.17 | V53: 48.09 | W53: 51
A54: 52 | B54: 2021310229 | C54: 马跃 | D54: 96.89 | E54: 0.000 | F54: 0.000 | G54: 96.89 | H54: 0.5372 | I54: 53.72 | J54: 82.40 | K54: 5.29 | L54: 0.000 | M54: 87.69 | N54: 0.4188 | O54: 41.88 | P54: 100.00 | Q54: 0.00 | R54: 0.00 | S54: 100.00 | T54: 0.8017 | U54: 80.17 | V54: 48.08 | W54: 52
A55: 53 | B55: 2021315212 | C55: 刘启 | D55: 96.91 | E55: 3.000 | F55: 0.000 | G55: 99.91 | H55: 0.5540 | I55: 55.40 | J55: 82.88 | K55: 0.00 | L55: 0.000 | M55: 82.88 | N55: 0.3959 | O55: 39.59 | P55: 100.00 | Q55: 0.00 | R55: 0.00 | S55: 100.00 | T55: 0.8017 | U55: 80.17 | V55: 46.81 | W55: 53
A56: 54 | B56: 2021310248 | C56: 罗伊雯 | D56: 96.88 | E56: 0.000 | F56: 0.000 | G56: 96.88 | H56: 0.5372 | I56: 53.72 | J56: 80.70 | K56: 0.00 | L56: 0.000 | M56: 80.70 | N56: 0.3855 | O56: 38.55 | P56: 100.00 | Q56: 0.00 | R56: 0.00 | S56: 100.00 | T56: 0.8017 | U56: 80.17 | V56: 45.74 | W56: 54
A57: 55 | B57: 2021310209 | C57: 李俊 | D57: 96.00 | E57: 0.000 | F57: 0.000 | G57: 96.00 | H57: 0.5323 | I57: 53.23 | J57: 0.00 | K57: 0.00 | L57: 0.000 | M57: 0.00 | N57: 0.0000 | O57: 0.00 | P57: 100.00 | Q57: 0.00 | R57: 0.00 | S57: 100.00 | T57: 0.8017 | U57: 80.17 | V57: 18.66 | W57: 55
A58: 56 | B58: 2021310210 | C58: 杨梅 | D58: 0.00 | E58: 0.000 | F58: 0.000 | G58: 0.00 | H58: 0.0000 | I58: 0.00 | J58: 0.00 | K58: 0.00 | L58: 0.000 | M58: 0.00 | N58: 0.0000 | O58: 0.00 | P58: 100.00 | Q58: 0.00 | R58: 0.00 | S58: 100.00 | T58: 0.8017 | U58: 80.17 | V58: 8.02 | W58: 56
